bitfinex/quotes_ETHUSD_20240618
["timestamp","ask_amount","ask_price","bid_price","bid_amount"]
[1718716632894,0.585761,3402.7,3400.8,2.2836]
[1718716633129,2.4086,3402.6,3400.6,2.828]
[1718716633446,5.4086,3402.6,3400.6,2.828]
[1718716634357,2.4383,3402.5,3400.4,12.12]
[1718716634639,5.4383,3402.5,3400.5,7.42439935]
[1718716634800,6.05409272,3402.5,3400.6,2.416]
[1718716635142,5.4383,3402.5,3400.6,5.416]
[1718716635302,2.4383,3402.5,3400.6,5.416]
[1718716635502,0.6024061,3402.4,3400.7,3.45003994]
[1718716635932,3.6024061,3402.4,3400.7,3.45003994]
[1718716637145,3.6024061,3402.4,3400.7,2.90003994]
[1718716639322,2.3268,3402.3,3400.5,7.42439935]
[1718716639636,2.3268,3402.0,3400.5,7.42439935]
[1718716639841,2.94259272,3402.0,3400.5,7.42439935]
[1718716639998,3.0,3401.9,3400.5,7.42439935]
[1718716640201,0.68662818,3401.8,3400.5,7.42439935]
[1718716640501,0.68662818,3401.8,3400.1,7.42439935]
[1718716640502,2.3407,3401.7,3400.1,7.42439935]
[1718716641138,2.3407,3401.6,3400.1,7.42439935]
[1718716641303,0.66431209,3401.5,3400.1,9.37883929]
[1718716641701,3.66431209,3401.5,3400.1,9.37883929]
[1718716643901,2.4935,3401.4,3400.1,1.95443994]
[1718716644103,5.4935,3401.4,3399.7,3.0]
[1718716644900,6.10929272,3401.4,3399.7,3.0]
[1718716645960,5.4935,3401.4,3399.8,0.55]
[1718716646098,2.4935,3401.4,3399.9,1.09743993]
[1718716646306,2.4909,3402.1,3400.3,2.828]
[1718716646503,2.4909,3402.1,3400.4,1.13985655]
[1718716646801,2.4909,3402.7,3400.9,2.4826]
[1718716647116,2.4909,3402.7,3401.3,2.828]
[1718716647345,2.90099272,3403.2,3401.4,0.60878456]
[1718716647647,2.2852,3403.2,3401.4,0.89158456]
[1718716647855,2.2852,3403.2,3401.4,0.8328]
[1718716648333,0.61579272,3403.1,3400.9,12.90699935]
[1718716648513,0.61579272,3402.8,3401.0,0.55]
[1718716648721,1.23154026,3403.1,3401.0,3.55]
[1718716648722,0.61579272,3402.9,3401.0,3.55]
[1718716648955,0.15394818,3402.8,3401.1,1.98729119]
[1718716649154,0.61579272,3402.9,3401.1,1.98729119]
[1718716649155,0.61579272,3402.9,3401.1,4.98729119]
[1718716649299,0.61579272,3403.1,3401.3,2.828]
[1718716649645,0.9982609,3403.0,3401.4,4.38064999]
[1718716649825,2.90099272,3403.2,3401.5,2.2904]
[1718716650031,2.90099272,3403.2,3401.6,1.50578348]
[1718716650195,2.90099272,3403.2,3401.6,4.50578348]
[1718716650398,2.90099272,3403.2,3401.7,0.05878194]
[1718716650600,0.61579272,3403.3,3401.7,0.05878192]
[1718716650830,0.61579272,3403.4,3401.8,4.06349654]
[1718716651002,0.61579272,3403.5,3401.9,0.05877744]
[1718716651210,0.61579272,3403.3,3402.0,0.4122274]
[1718716651461,0.61579272,3403.1,3402.0,0.4122274]
[1718716652235,0.61579272,3403.0,3402.0,0.4122274]
[1718716652416,0.61579272,3403.0,3402.1,0.44757239]
[1718716652620,0.61579272,3402.9,3401.8,0.68549654]
[1718716652944,0.61579272,3402.9,3401.5,2.2904]
[1718716652945,0.61579272,3402.6,3401.5,2.2904]
[1718716653100,0.61579272,3402.6,3401.6,0.55]
[1718716653436,0.61579272,3402.6,3401.5,2.2904]
[1718716653437,0.61579272,3402.5,3401.5,2.2904]
[1718716653624,0.61579272,3402.5,3401.6,0.81184]
[1718716654335,0.61579272,3402.3,3401.5,2.2904]
[1718716654943,0.61579272,3402.2,3401.5,2.2904]
[1718716655307,0.61579272,3402.1,3400.9,3.0]
[1718716655507,0.61579272,3401.9,3401.0,0.5828]
[1718716655938,0.61579272,3401.9,3400.5,0.28940731]
[1718716655939,0.61579272,3401.7,3400.5,0.28940731]
[1718716656135,0.61579272,3401.7,3400.4,5.1648]
[1718716656136,0.61579272,3401.7,3400.4,8.1648]
[1718716656341,0.61579272,3401.6,3400.5,3.0]
[1718716656560,0.61579272,3401.6,3400.6,1.85891994]
[1718716656762,0.61579272,3401.5,3400.6,1.85891994]
[1718716657130,0.61579272,3401.4,3400.6,1.85891994]
[1718716657322,0.61579272,3401.3,3400.7,0.41957199]
[1718716657570,0.61579272,3401.4,3400.4,2.3368]
[1718716658278,0.61579272,3401.2,3400.4,2.3368]
[1718716658496,0.61579272,3401.1,3400.0,7.42439935]
[1718716658780,0.61579272,3400.7,3399.6,7.42439935]
[1718716659070,0.61579272,3400.6,3399.7,4.27182994]
[1718716659277,0.61579272,3400.6,3399.6,3.0]
[1718716659424,0.61579272,3400.5,3399.5,2.2939]
[1718716659624,0.61579272,3400.5,3399.6,0.22939]
[1718716660064,0.61579272,3400.3,3399.6,0.22939]
[1718716660453,0.92368908,3400.5,3399.6,0.22939]
[1718716660454,0.61579272,3400.4,3399.6,0.22939]
[1718716660655,0.61579272,3400.4,3399.7,0.252329]
[1718716661070,0.61579272,3400.5,3399.7,0.252329]
[1718716661603,0.92368908,3400.7,3399.7,0.252329]
[1718716661604,0.61579272,3400.6,3399.7,0.252329]
[1718716662353,0.61579272,3400.6,3399.8,0.05881512]
[1718716662583,0.92368908,3400.7,3399.9,0.55]
[1718716662584,0.61579272,3400.7,3399.9,0.55]
[1718716662791,0.61579272,3400.6,3400.0,0.3630329]
[1718716663003,0.61579272,3400.6,3399.7,0.252329]
[1718716663172,0.61579272,3400.5,3399.7,0.252329]
[1718716663370,0.61579272,3400.4,3399.7,0.252329]
[1718716664298,0.61579272,3400.5,3399.7,0.252329]
[1718716664485,0.61579272,3400.6,3399.8,0.05881679]
[1718716664685,0.61579272,3400.7,3399.8,0.05881679]
[1718716664870,0.61579272,3400.7,3399.9,0.31391458]
[1718716665076,0.61579272,3400.7,3400.0,0.05881681]
[1718716665306,0.61579272,3400.7,3399.9,0.31391458]
[1718716665461,0.61579272,3400.5,3399.9,0.31391458]
[1718716665662,0.61579272,3400.6,3400.0,0.33942436]
[1718716665864,0.61579272,3400.7,3400.0,0.33942436]
[1718716667093,4.23154026,3401.0,3400.1,0.05881117]
[1718716667094,0.61579272,3400.8,3400.1,0.05881117]
[1718716667298,0.61579272,3401.0,3400.1,0.05881117]
[1718716667663,0.61579272,3400.7,3400.0,0.33942436]
[1718716667933,0.61579272,3400.7,3399.7,3.080329]
[1718716668111,0.61579272,3400.5,3399.7,0.252329]
[1718716668887,2.98219272,3400.5,3399.3,2.828]
[1718716669087,0.61579272,3400.1,3398.9,0.46122232]
[1718716669264,0.61579272,3400.1,3399.1,2.828]
[1718716669464,0.61579272,3400.2,3399.1,2.828]
[1718716669667,0.61579272,3400.2,3399.3,1.02523993]
[1718716670320,0.61579272,3400.5,3399.4,2.49371841]
[1718716670601,0.61579272,3400.8,3399.7,2.828]
[1718716670780,0.61579272,3400.9,3399.8,0.94661114]
[1718716670981,0.92368908,3401.0,3399.8,0.94661114]
[1718716670982,0.61579272,3401.0,3399.8,3.94661114]
[1718716671181,0.61579272,3401.0,3400.3,2.2901]
[1718716671379,0.61579272,3401.3,3400.4,0.60880346]
[1718716671729,0.61579272,3401.4,3400.5,0.57269035]
[1718716671922,0.61579272,3401.4,3400.6,0.05880198]
[1718716672068,0.61579272,3401.4,3400.5,0.57269035]
[1718716672273,0.61579272,3401.3,3400.6,0.34127904]
[1718716672765,0.61579272,3401.3,3400.7,0.05880199]
[1718716672970,4.11734928,3402.1,3400.7,0.05880199]
[1718716672971,0.61579272,3401.7,3400.8,0.608799]
[1718716673204,0.61579272,3401.7,3401.2,2.828]
[1718716673371,0.61579272,3402.0,3401.3,0.55]
[1718716673567,0.61579272,3402.1,3401.4,0.3378]
[1718716673912,0.61579272,3402.1,3401.5,0.55]
[1718716674379,0.92368908,3402.2,3401.4,0.3378]
[1718716674380,0.61579272,3402.0,3401.4,0.3378]
[1718716674583,0.61579272,3402.1,3401.5,0.37536994]
[1718716674788,1.23154026,3402.4,3401.6,0.55]
[1718716674789,0.61579272,3402.2,3401.6,0.55]
[1718716675112,0.61579272,3402.4,3401.7,0.05878377]
[1718716675296,0.61579272,3402.5,3401.8,0.05878306]
[1718716675537,0.61579272,3402.5,3401.6,0.55]
[1718716676297,0.61579272,3402.4,3401.6,0.970438]
[1718716676470,0.61579272,3402.5,3401.6,0.970438]
[1718716676672,0.61579272,3402.4,3401.6,0.420438]
[1718716677011,0.61579272,3402.3,3401.6,0.420438]
[1718716677212,0.61579272,3402.3,3401.5,0.31658]
[1718716677378,0.61579272,3402.1,3401.5,0.31658]
[1718716678674,0.61579272,3402.3,3401.6,0.55]
[1718716678880,0.61579272,3402.5,3401.7,2.54328236]
[1718716679117,0.61579272,3402.5,3401.8,1.17378624]
[1718716679297,0.61579272,3402.7,3401.9,0.05877976]
[1718716679498,0.61579272,3402.7,3402.0,0.3717066]
[1718716679674,0.61579272,3402.7,3402.1,0.0587793]
[1718716679882,0.61579272,3402.7,3402.0,0.3717066]
[1718716679883,0.61579272,3402.9,3402.2,0.55]
[1718716680222,0.61579272,3402.9,3402.3,0.37497066]
[1718716680517,0.61579272,3403.0,3402.0,3.1997066]
[1718716680712,0.61579272,3403.0,3402.1,0.55]
[1718716681008,0.61579272,3403.1,3402.2,0.05877207]
[1718716681213,0.61579272,3403.1,3402.3,0.93084787]
[1718716681414,0.61579272,3403.1,3402.4,0.05877033]
[1718716681622,0.61579272,3403.1,3402.5,2.2955]
[1718716681780,0.61579272,3403.1,3403.0,2.828]
[1718716681980,0.61579272,3403.1,3403.0,3.6608]
[1718716682292,0.92368908,3403.3,3403.0,3.6608]
[1718716682482,0.92368908,3403.3,3403.1,0.55]
[1718716682677,0.92368908,3403.3,3403.2,0.05876243]
[1718716682881,0.92368908,3403.3,3403.2,0.55]
[1718716683099,0.92368908,3403.3,3403.1,3.0]
[1718716683516,0.92368908,3403.3,3402.5,5.1235]
[1718716683723,0.92368908,3403.3,3402.6,3.55]
[1718716685041,0.92368908,3403.3,3403.0,2.828]
[1718716685179,0.92368908,3403.3,3403.1,0.60876182]
[1718716685387,0.92368908,3403.3,3403.1,0.89367618]
[1718716686989,0.92368908,3403.3,3403.2,0.05875873]
[1718716687235,0.61579272,3404.1,3403.2,4.64145788]
[1718716687395,0.61579272,3404.1,3403.9,2.828]
[1718716687735,0.61579272,3404.1,3404.0,0.2828]
[1718716688235,0.61579272,3404.1,3403.5,2.828]
[1718716688386,0.61579272,3404.1,3403.6,3.0]
[1718716688786,0.61579272,3404.1,3403.7,0.05874581]
[1718716689014,0.61579272,3404.1,3404.0,2.828]
[1718716689391,0.61579272,3404.1,3404.0,3.378]
[1718716689593,0.61579272,3404.1,3404.0,3.7158]
[1718716689820,0.61579272,3404.1,3404.0,3.6858]
[1718716690557,1.23154026,3404.4,3404.0,5.9983]
[1718716690730,1.23154026,3404.4,3404.1,0.60874158]
[1718716690935,1.23154026,3404.4,3404.2,0.96070416]
[1718716691090,1.23154026,3404.4,3404.3,0.55]
[1718716691289,1.23154026,3404.4,3404.3,3.404]
[1718716693413,2.4409,3406.7,3404.5,4.866]
[1718716693719,2.4409,3406.7,3405.3,2.828]
[1718716694097,2.4409,3406.7,3405.4,0.55]
[1718716694306,0.24409,3406.6,3405.4,0.55]
[1718716695120,0.24409,3406.6,3405.0,7.42439935]
[1718716695322,3.24409,3406.6,3405.1,3.0]
[1718716696854,3.24409,3406.6,3405.0,7.42439935]
[1718716697222,2.4063,3406.5,3405.0,7.42439935]
[1718716697568,0.565039,3406.4,3405.0,7.42439935]
[1718716697766,3.565039,3406.4,3405.1,0.05873232]
[1718716697921,3.565039,3406.4,3405.0,7.42439935]
[1718716698631,2.4841,3406.3,3405.0,7.42439935]
[1718716698947,0.6049139,3406.2,3405.0,7.42439935]
[1718716699111,3.6049139,3406.2,3405.0,7.42439935]
[1718716699621,5.4242,3406.1,3405.0,7.42439935]
[1718716699958,5.4242,3406.1,3404.3,7.42439935]
[1718716699959,2.4242,3406.1,3404.3,7.42439935]
[1718716700178,2.4242,3405.9,3404.0,7.42439935]
[1718716700452,2.4242,3405.7,3404.0,7.42439935]
[1718716700674,2.72162,3405.6,3404.0,7.42439935]
[1718716700958,3.0,3405.5,3404.1,0.05874702]
[1718716701318,3.0,3405.5,3404.0,7.42439935]
[1718716701962,2.4903,3405.4,3404.0,7.42439935]
[1718716702162,0.578772,3405.3,3403.7,10.25239935]
[1718716702365,3.578772,3405.3,3403.7,10.25239935]
[1718716704840,0.578772,3405.3,3403.8,3.60874553]
[1718716705037,2.4903,3405.4,3403.8,3.60874553]
[1718716705547,2.4903,3405.4,3404.2,2.828]
[1718716705865,2.4903,3405.4,3404.3,0.55]
[1718716706959,2.4903,3405.4,3404.4,0.05873642]
[1718716707171,2.4903,3405.4,3404.5,0.34367364]
[1718716707478,2.4903,3405.4,3404.6,0.05873635]
[1718716707686,2.3377,3406.7,3404.5,0.34367364]
[1718716707857,2.3377,3406.7,3404.6,0.55]
[1718716708060,0.23377,3406.6,3404.6,0.55]
[1718716708446,3.23377,3406.6,3404.7,2.88672913]
[1718716708769,3.23377,3406.6,3404.8,0.55]
[1718716709140,3.23377,3406.6,3404.9,0.05872769]
[1718716709373,3.23377,3406.6,3404.8,0.55]
[1718716709581,0.557147,3406.5,3404.9,0.39652775]
[1718716710561,0.557147,3406.5,3405.0,0.55]
[1718716710766,0.557147,3406.5,3405.1,0.05872171]
[1718716711285,0.557147,3406.5,3405.0,0.55]
[1718716711286,0.557147,3406.5,3405.2,0.05872189]
[1718716711783,3.0,3406.6,3405.2,0.05872189]
[1718716711986,3.0,3406.6,3405.1,0.05872187]
[1718716712187,2.3377,3406.7,3405.1,0.05872187]
[1718716712695,2.3377,3406.7,3405.0,0.55]
[1718716712848,0.23377,3406.6,3405.1,1.36696994]
[1718716713191,3.23377,3406.6,3405.1,1.36696994]
[1718716714282,2.3959,3406.5,3404.8,7.42439935]
[1718716714795,5.3959,3406.5,3404.8,7.42439935]
[1718716715304,2.4253,3406.4,3404.8,7.42439935]
[1718716715670,2.4253,3406.3,3404.8,7.42439935]
[1718716715865,0.75403,3406.2,3404.8,7.42439935]
[1718716716091,2.4253,3406.1,3404.8,7.42439935]
[1718716716457,5.4253,3406.1,3404.8,7.42439935]
[1718716717065,5.4253,3406.1,3404.5,2.115]
[1718716717491,5.4253,3406.1,3404.4,7.42439935]
[1718716717654,0.617933,3406.0,3404.5,0.74243993]
[1718716718097,3.617933,3406.0,3404.5,0.74243993]
[1718716719697,2.13529302,3405.9,3404.5,0.74243993]
[1718716719903,3.0,3405.9,3404.5,0.74243993]
[1718716720132,0.96498411,3405.8,3404.5,0.74243993]
[1718716720413,0.96498411,3405.8,3404.4,7.42439935]
[1718716720414,2.2879,3405.7,3404.4,7.42439935]
[1718716720647,5.2879,3405.7,3404.4,7.42439935]
[1718716720988,2.2879,3405.7,3404.4,7.42439935]
[1718716721522,3.0,3406.0,3404.5,0.60873618]
[1718716721737,2.98680809,3406.2,3404.6,0.80331355]
[1718716722016,2.13511284,3406.1,3404.7,0.05873102]
[1718716722245,6.34040174,3406.1,3404.8,0.05873103]
[1718716722374,0.60660809,3406.4,3405.2,2.82]
[1718716722711,2.4599,3406.7,3405.3,3.832]
[1718716723085,2.96050809,3407.1,3405.4,0.0587152]
[1718716723408,2.2861329,3407.0,3405.4,0.6652]
[1718716723594,2.2861329,3407.0,3405.3,3.282]
[1718716723595,2.13441369,3406.9,3405.3,0.282]
[1718716723795,0.60660809,3406.7,3405.3,0.282]
[1718716724307,0.60660809,3406.4,3405.3,0.282]
[1718716724522,2.93350809,3406.2,3405.0,3.0]
[1718716724697,2.93350809,3406.2,3404.9,7.42439935]
[1718716724698,0.60660809,3406.1,3404.9,7.42439935]
[1718716724902,0.60660809,3405.7,3404.9,7.42439935]
[1718716725098,2.13511659,3405.6,3404.6,0.80331355]
[1718716725296,0.60660809,3405.7,3404.6,0.80331355]
[1718716725297,0.60660809,3405.5,3404.6,0.80331355]
[1718716725502,0.60660809,3405.6,3404.7,0.82277129]
[1718716725706,0.60660809,3405.5,3404.7,0.82277129]
[1718716726525,0.60660809,3405.5,3404.8,0.90504842]
[1718716726526,0.60660809,3405.4,3404.8,0.90504842]
[1718716726725,0.60660809,3405.4,3404.8,0.96378422]
[1718716726931,0.60660809,3405.4,3403.7,7.42439935]
[1718716726932,0.60660809,3405.0,3403.7,7.42439935]
[1718716727220,0.61475084,3404.7,3403.5,2.82]
[1718716727403,0.61475084,3404.6,3403.5,4.44174758]
[1718716727822,0.61475084,3404.6,3403.6,0.05874694]
[1718716728138,0.61475084,3404.7,3403.7,1.45295225]
[1718716728327,0.61475084,3404.6,3403.7,1.45295225]
[1718716728502,0.61475084,3404.6,3403.8,0.58946998]
[1718716728850,0.61475084,3404.5,3403.8,0.58946998]
[1718716728991,0.61475084,3404.5,3403.5,1.62174758]
[1718716729189,0.61475084,3404.2,3403.5,1.62174758]
[1718716729901,0.61475084,3404.1,3403.5,1.62174758]
[1718716730105,0.61475084,3404.1,3403.4,7.42439935]
[1718716730808,0.61475084,3404.1,3403.1,10.42439935]
[1718716731010,0.61475084,3403.9,3403.1,10.42439935]
[1718716731211,0.61475084,3403.9,3403.2,1.56185994]
[1718716731789,0.61475084,3404.0,3403.2,1.56185994]
[1718716732009,0.61475084,3403.9,3403.2,1.56185994]
[1718716732235,0.61475084,3403.9,3403.3,0.55]
[1718716732438,0.61475084,3403.8,3403.4,0.95362593]
[1718716733141,0.61475084,3404.0,3403.4,0.95362593]
[1718716733341,0.61475084,3404.0,3403.5,0.15036259]
[1718716733530,0.61475084,3403.9,3403.5,0.15036259]
[1718716733850,0.61475084,3404.0,3403.5,0.15036259]
[1718716734005,0.61475084,3404.0,3403.6,0.16539885]
[1718716736651,0.61475084,3403.8,3403.6,0.16539885]
[1718716736946,0.61475084,3403.8,3403.3,0.55]
[1718716737125,0.61475084,3403.7,3403.1,7.42439935]
[1718716737444,0.61475084,3403.4,3403.1,7.42439935]
[1718716737653,0.61475084,3403.4,3402.6,21.66139935]
[1718716737823,0.61475084,3403.4,3402.3,6.638263]
[1718716737824,0.61475084,3403.4,3402.7,2.19479649]
[1718716738025,0.61475084,3403.2,3402.4,3.0]
[1718716738346,0.61475084,3403.2,3402.3,12.88529935]
[1718716738347,0.61475084,3402.6,3402.3,7.42439935]
[1718716738651,0.61475084,3402.8,3402.4,0.74243993]
[1718716739323,0.61475084,3402.7,3402.1,2.117]
[1718716739532,0.61475084,3402.7,3402.0,7.42439935]
[1718716739533,0.61475084,3402.6,3402.0,7.42439935]
[1718716739846,0.61475084,3402.5,3402.1,1.95443994]
[1718716740018,0.61475084,3402.6,3402.1,1.95443994]
[1718716740214,0.61475084,3402.6,3401.8,3.0]
[1718716740639,0.61475084,3402.7,3401.8,3.0]
[1718716740928,0.61475084,3402.8,3402.0,2.824]
[1718716741258,0.61475084,3402.9,3401.9,1.27326994]
[1718716741444,0.61475084,3402.5,3401.7,7.42439935]
[1718716741635,0.61475084,3402.4,3401.7,7.42439935]
[1718716741945,0.61475084,3402.4,3401.4,7.42439935]
[1718716742168,0.61475084,3402.4,3401.2,3.0]
[1718716742169,0.61475084,3402.3,3401.2,3.0]
[1718716742331,0.61475084,3402.5,3401.2,3.0]
[1718716742533,0.61475084,3402.4,3401.3,1.28969994]
[1718716742742,0.91058405,3402.6,3401.3,1.28969994]
[1718716742743,0.61475084,3402.5,3401.3,1.28969994]
[1718716742934,0.61475084,3402.5,3401.4,0.0587916]
[1718716743139,0.61475084,3402.5,3401.5,0.43484915]
[1718716743350,0.61475084,3402.4,3401.3,1.28969994]
[1718716743535,0.61475084,3402.3,3401.3,1.28969994]
[1718716744058,3.0,3402.5,3401.4,0.55]
[1718716744233,0.61475084,3402.6,3401.4,0.55]
[1718716744234,0.61475084,3402.6,3401.5,0.18396999]
[1718716744551,0.91058405,3402.7,3401.5,0.18396999]
[1718716744552,0.61475084,3402.7,3401.5,0.18396999]
[1718716744756,3.0,3402.8,3401.1,7.42439935]
[1718716744757,0.61475084,3402.6,3401.1,7.42439935]
[1718716744926,0.61475084,3402.5,3401.1,7.42439935]
[1718716745429,0.61475084,3402.6,3401.2,0.05879657]
[1718716745631,3.61475084,3402.8,3401.3,0.74831959]
[1718716745833,3.10505084,3402.9,3401.4,2.45908692]
[1718716746023,3.10505084,3402.9,3401.5,0.62074065]
[1718716746764,0.61475084,3402.8,3401.1,8.60218335]
[1718716747053,0.61475084,3402.6,3401.1,8.60218335]
[1718716747217,0.61475084,3402.7,3401.2,0.05879691]
[1718716747416,3.0,3402.8,3401.3,0.92489492]
[1718716747854,2.4903,3402.9,3401.3,0.92489492]
[1718716748158,3.0,3403.2,3401.4,0.60878467]
[1718716748383,2.4867,3403.4,3401.6,2.4498]
[1718716748678,2.4867,3403.4,3402.0,2.824]
[1718716748955,2.4867,3403.4,3402.1,0.2824]
[1718716749840,2.4867,3403.4,3401.7,7.42439935]
[1718716750153,0.61475084,3403.3,3401.7,7.42439935]
[1718716750357,6.10145084,3403.4,3401.7,7.42439935]
[1718716750864,6.10145084,3403.4,3401.5,0.44748827]
[1718716751034,2.98885084,3403.2,3401.3,7.42439935]
[1718716751235,2.98885084,3403.2,3399.6,3.69151]
[1718716751236,0.61475084,3403.1,3400.9,7.42439935]
[1718716751558,0.61475084,3403.1,3401.0,1.04243994]
[1718716751559,2.4286,3402.9,3401.0,1.04243994]
[1718716751725,6.04335084,3402.9,3400.9,7.42439935]
[1718716751932,0.61475084,3402.8,3400.9,7.42439935]
[1718716752235,0.61475084,3402.7,3400.9,7.42439935]
[1718716752958,2.4968,3402.6,3400.9,7.42439935]
[1718716753170,0.70221349,3402.5,3400.9,8.16683928]
[1718716753384,3.0,3402.5,3400.9,0.74243993]
[1718716753664,3.0,3402.5,3401.0,0.05879539]
[1718716753863,3.0,3402.5,3401.1,2.4621]
[1718716754084,2.4968,3402.6,3401.1,2.4621]
[1718716754292,3.0,3402.9,3401.2,1.07861]
[1718716754502,0.57653892,3403.0,3401.2,1.07861]
[1718716754779,3.0,3403.1,3401.2,1.07861]
[1718716754991,2.2988,3403.2,3401.2,1.07861]
[1718716755303,2.2988,3403.2,3401.2,4.07861]
[1718716756176,2.2988,3403.2,3401.2,3.52861]
[1718716756697,2.2988,3403.2,3401.3,0.55]
[1718716756844,0.22988,3403.1,3401.4,0.654071]
[1718716757046,3.22988,3403.1,3401.5,0.55]
[1718716757776,3.22988,3403.1,3401.4,0.654071]
[1718716758481,3.22988,3403.1,3401.5,0.05879065]
[1718716758643,3.22988,3403.1,3401.4,0.654071]
[1718716758842,0.552868,3403.0,3401.4,0.654071]
[1718716759287,0.552868,3403.0,3401.1,2.4621]
[1718716760054,0.552868,3403.0,3401.2,0.05879547]
[1718716760752,0.552868,3403.0,3401.1,2.4621]
[1718716763296,0.552868,3403.0,3401.0,7.42439935]
[1718716763457,0.55,3402.9,3401.0,7.42439935]
[1718716763801,0.49474988,3402.8,3401.1,0.74243993]
[1718716764372,2.3762,3402.7,3401.0,7.42439935]
[1718716764699,5.3762,3402.7,3400.6,9.84619935]
[1718716764884,0.55,3402.6,3400.6,12.84619935]
[1718716765203,4.34462848,3402.6,3400.7,2.77901994]
[1718716765370,4.95937932,3402.6,3400.6,5.4218]
[1718716765561,4.95937932,3402.6,3400.6,2.4218]
[1718716765966,4.34462848,3402.6,3400.6,2.4218]
[1718716766288,2.3838,3402.4,3400.7,0.24218]
[1718716766495,2.3838,3402.4,3400.3,3.0]
[1718716766496,5.3838,3402.4,3400.3,3.0]
[1718716766995,0.55,3402.3,3400.2,7.42439935]
[1718716767289,4.94879848,3402.3,3400.3,1.25839993]
[1718716767461,5.45769115,3402.3,3400.3,1.25839993]
[1718716767662,4.94879848,3402.3,3400.3,1.25839993]
[1718716767881,1.23591081,3402.2,3400.4,1.10183993]
[1718716768394,2.3259,3402.1,3400.4,1.10183993]
[1718716768558,5.8759,3402.1,3400.4,1.10183993]
[1718716769299,5.8759,3402.1,3400.2,7.42439935]
[1718716769300,2.2847,3401.8,3400.2,7.42439935]
[1718716769521,2.121,3401.6,3400.2,7.42439935]
[1718716769694,5.89945084,3401.8,3399.8,9.54539935]
[1718716769896,0.37041767,3401.7,3399.9,2.40844994]
[1718716770077,3.37041767,3401.7,3400.0,0.05881703]
[1718716770405,0.62698685,3401.6,3400.1,1.20126663]
[1718716771410,1.24173769,3401.6,3400.1,1.20126663]
[1718716771580,3.0,3401.7,3400.2,2.17981409]
[1718716771782,3.0,3401.7,3400.3,2.278]
[1718716772085,3.0,3402.1,3400.6,2.121]
[1718716772288,0.61475084,3402.3,3400.7,0.27678568]
[1718716772484,0.61475084,3402.2,3400.7,0.21798045]
[1718716772683,0.61475084,3402.1,3400.3,9.70239935]
[1718716773314,0.61475084,3402.0,3400.3,9.70239935]
[1718716773518,0.61475084,3401.9,3400.3,9.70239935]
[1718716773787,0.91058405,3402.0,3400.4,1.0903666]
[1718716773788,0.76728433,3401.8,3400.4,1.0903666]
[1718716773988,0.61475084,3401.8,3400.4,1.0903666]
[1718716774297,2.3115,3401.7,3400.4,1.0903666]
[1718716774508,5.92625084,3401.7,3400.4,1.0903666]
[1718716774819,5.92625084,3401.7,3400.1,1.20126663]
[1718716774999,0.61475084,3401.5,3400.1,1.20126663]
[1718716775754,3.61475084,3401.6,3399.9,3.0]
[1718716776524,0.61475084,3401.5,3399.9,3.0]
[1718716777111,3.61475084,3401.6,3399.9,3.0]
[1718716777317,1.23695924,3401.5,3400.0,1.48275994]
[1718716778149,1.23695924,3401.5,3400.1,0.05881694]
[1718716778150,0.6222084,3401.5,3400.1,0.05881694]
[1718716778343,1.23695924,3401.5,3400.1,0.05881694]
[1718716778501,1.23695924,3401.5,3400.2,0.45415769]
[1718716778703,0.61475084,3401.5,3400.2,0.45415769]
[1718716778902,3.0,3401.6,3400.2,2.57515769]
[1718716779103,0.61475084,3401.9,3400.6,2.121]
[1718716779419,3.91058405,3402.1,3400.7,0.50979509]
[1718716779420,0.61475084,3402.0,3400.7,0.50979509]
[1718716779948,0.61475084,3402.0,3400.8,0.05880509]
[1718716780250,3.91058405,3402.2,3400.7,0.45099]
[1718716780251,0.61475084,3402.1,3401.0,2.121]
[1718716780414,3.0,3402.2,3401.1,0.2121]
[1718716780415,0.61475084,3402.0,3401.1,0.2121]
[1718716780620,0.61475084,3402.0,3400.7,3.45099]
[1718716780939,0.61475084,3402.2,3400.8,0.55]
[1718716781136,3.61475084,3402.2,3400.8,0.55]
[1718716781453,0.61475084,3402.1,3400.9,0.312199]
[1718716781605,0.61475084,3402.1,3400.8,0.55]
[1718716782563,0.61475084,3402.0,3400.9,0.05879748]
[1718716783167,1.18859239,3402.0,3400.7,0.45099]
[1718716783453,0.61475084,3401.5,3400.7,0.45099]
[1718716783948,0.61475084,3401.4,3400.7,0.45099]
[1718716784437,0.61475084,3401.4,3400.4,2.3889]
[1718716784614,0.61475084,3401.1,3400.4,2.3889]
[1718716785207,0.61475084,3401.0,3400.4,2.3889]
[1718716785411,0.61475084,3400.9,3400.4,2.3889]
[1718716786144,0.61475084,3400.9,3400.0,9.76229935]
[1718716786145,0.61475084,3400.7,3400.0,9.76229935]
[1718716786321,0.61475084,3400.7,3400.1,2.23703993]
[1718716788812,0.61475084,3400.8,3400.2,0.05881433]
[1718716789124,0.61475084,3400.8,3400.3,1.20581536]
[1718716790123,0.61475084,3400.7,3400.3,1.20581536]
[1718716790317,0.61475084,3400.7,3400.1,2.23703993]
[1718716791347,0.91058405,3400.9,3400.1,2.23703993]
[1718716791348,0.61475084,3400.8,3400.1,2.23703993]
[1718716791728,0.61475084,3400.8,3400.0,2.3379]
[1718716792041,0.61475084,3400.7,3400.0,2.3379]
[1718716793742,0.61475084,3400.6,3400.0,2.3379]
[1718716796045,0.61475084,3400.7,3400.1,0.55]
[1718716796245,0.61475084,3400.8,3400.1,1.08379]
[1718716796446,0.61475084,3401.0,3400.2,0.624769]
[1718716796639,0.61475084,3401.0,3400.3,0.55]
[1718716797549,0.61475084,3400.9,3400.3,0.55]
[1718716797746,0.61475084,3400.9,3400.5,2.366]
[1718716797947,0.61475084,3401.1,3400.6,0.05880493]
[1718716798421,0.61475084,3401.0,3400.6,0.05880493]
[1718716798744,0.61475084,3401.0,3400.7,0.25956608]
[1718716800463,0.91058405,3401.1,3400.2,8.04916835]
[1718716800464,0.61475084,3400.8,3400.2,8.04916835]
[1718716800641,0.61237369,3400.6,3400.2,7.42439935]
[1718716800837,0.61237369,3400.5,3400.2,7.42439935]
[1718716801352,0.61237369,3400.5,3400.2,8.69017929]
[1718716801753,0.61237369,3400.4,3400.2,7.42439935]
[1718716801950,0.91058405,3400.5,3400.0,2.4074]
[1718716801951,0.61237369,3400.3,3400.0,2.4074]
[1718716802156,0.61237369,3400.4,3400.0,3.39057994]
[1718716803129,0.61237369,3400.3,3400.0,3.39057994]